fUST/lending_fUST_20240201
["ID","MTS","AMOUNT","RATE_DAILY","PERIOD"]
[313111911,1706759440330,-500.0,0.00021989,2]
[313111913,1706759440340,-382.67818423,0.00021989,2]
[313111915,1706759440349,-500.0,0.00021989,2]
[313111917,1706759440358,-500.0,0.00021989,2]
[313111919,1706759440367,-500.0,0.00021989,2]
[313111921,1706759440377,-500.0,0.00021989,2]
[313111923,1706759440386,-151.688273,0.00021989,2]
[313111925,1706759440395,-500.0,0.00021989,2]
[313111927,1706759440405,-1580.710543,0.00021989,2]
[313111928,1706759440414,-1580.710543,0.00021989,2]
[313111929,1706759440424,-500.0,0.00021989,2]
[313111930,1706759440434,-151.0,0.00021989,2]
[313111931,1706759440443,-447.49835205,0.00021989,2]
[313111932,1706759440453,-6956.25005047,0.0002199,7]
[313111934,1706759440462,-685.29221933,0.0002199,2]
[313111935,1706759440472,-2088.24989888,0.0002199,2]
[313111937,1706759440481,-1829.31848174,0.0002199,2]
[313111938,1706759440491,-300.0,0.0002199,2]
[313111939,1706759440500,-211868.0548058,0.0002199,2]
[313111940,1706759440515,-72992.32343139,0.0002199,2]
[313111941,1706759440524,-6138.13119635,0.0002199,2]
[313111942,1706759440533,-151.0,0.0002199,2]
[313111943,1706759440543,-151.0,0.0002199,2]
[313111944,1706759440552,-151.0,0.0002199,2]
[313111945,1706759440561,-151.0,0.0002199,2]
[313111946,1706759440570,-1580.710543,0.0002199,2]
[313111947,1706759440579,-1580.710543,0.0002199,2]
[313111948,1706759440588,-248.687395,0.0002199,2]
[313111949,1706759440598,-2037.9288444,0.00022,2]
[313111950,1706759440606,-327.87136116,0.00022,2]
[313111951,1706759440615,-3975.94482734,0.00022,2]
[313111952,1706759440625,-426.74292046,0.00022,2]
[313111953,1706759440634,-1526.88,0.00022145,2]
[313111954,1706759440643,-524.41,0.00022191,2]
[313111955,1706759440652,-500.0,0.00022191,2]
[313111956,1706759440662,-1723.89,0.00022191,2]
[313111957,1706759440670,-500.0,0.00022191,2]
[313111958,1706759440679,-1136.04,0.00022191,2]
[313111959,1706759440689,-500.0,0.00022191,2]
[313111960,1706759440698,-748.69,0.00022191,2]
[313111961,1706759440707,-500.0,0.00022191,2]
[313111962,1706759440716,-500.0,0.00022191,2]
[313111963,1706759440725,-500.0,0.00022191,2]
[313111964,1706759440734,-500.0,0.00022191,2]
[313111965,1706759440743,-1262.87,0.00022191,2]
[313111966,1706759440752,-500.0,0.00022191,2]
[313111967,1706759440762,-153.948692,0.00022419,2]
[313111968,1706759440771,-151.0,0.00022419,2]
[313111969,1706759440780,-1526.88,0.00022419,2]
[313111970,1706759440789,-166.666666,0.00022431,2]
[313111971,1706759440799,-524.41,0.00022465,2]
[313111972,1706759440808,-500.0,0.00022465,2]
[313111973,1706759440817,-1723.89,0.00022465,2]
[313111974,1706759440826,-500.0,0.00022465,2]
[313111975,1706759440836,-1136.04,0.00022465,2]
[313111976,1706759440845,-748.69,0.00022465,2]
[313111977,1706759440854,-500.0,0.00022465,2]
[313111978,1706759440864,-492.52543003,0.00022465,2]
[313111979,1706759440873,-1262.87,0.00022465,2]
[313111980,1706759440883,-500.0,0.00022465,2]
[313111981,1706759440893,-151.0,0.00022679,2]
[313111982,1706759440902,-1526.88,0.00022693,2]
[313111983,1706759440911,-151.0,0.00022695,2]
[313111984,1706759440921,-151.0,0.00022695,2]
[313111985,1706759440930,-524.41,0.00022739,2]
[313111986,1706759440939,-500.0,0.00022739,2]
[313111987,1706759440950,-1723.89,0.00022739,2]
[313111988,1706759440962,-1580.710543,0.00022739,2]
[313111989,1706759440971,-1580.710543,0.00022739,2]
[313111990,1706759440980,-500.0,0.00022739,2]
[313111991,1706759440990,-1136.04,0.00022739,2]
[313111992,1706759441000,-748.69,0.00022739,2]
[313111993,1706759441010,-500.0,0.00022739,2]
[313111994,1706759441020,-1262.87,0.00022739,2]
[313111995,1706759441030,-500.0,0.00022739,2]
[313111996,1706759441040,-166.666666,0.00022944,2]
[313111997,1706759441050,-1526.88,0.00022967,2]
[313111998,1706759441061,-507.35740571,0.00022999,2]
[313111999,1706759441070,-516.26866858,0.00022999,2]
[313112001,1706759441080,-500.0,0.00022999,2]
[313112003,1706759441088,-500.0,0.00022999,2]
[313112005,1706759441098,-500.0,0.00022999,2]
[313112006,1706759441107,-500.0,0.00022999,2]
[313112007,1706759441117,-500.0,0.00022999,2]
[313112009,1706759441127,-500.0,0.00022999,2]
[313112010,1706759441137,-500.0,0.00022999,2]
[313112011,1706759441147,-19111.12484416,0.00023,2]
[313112012,1706759441157,-1261.69149652,0.00023,2]
[313112013,1706759441166,-249.961883,0.00023,2]
[313112014,1706759441176,-151.0,0.00023,2]
[313112015,1706759441186,-524.41,0.00023013,2]
[313112016,1706759441196,-500.0,0.00023013,2]
[313112017,1706759441211,-1723.89,0.00023013,2]
[313112018,1706759441221,-1580.710543,0.00023013,2]
[313112019,1706759441232,-1580.710543,0.00023013,2]
[313112020,1706759441246,-500.0,0.00023013,2]
[313112021,1706759441256,-1136.04,0.00023013,2]
[313112022,1706759441267,-748.69,0.00023013,2]
[313112023,1706759441277,-500.0,0.00023013,2]
[313112024,1706759441288,-1262.87,0.00023013,2]
[313112025,1706759441298,-500.0,0.00023013,2]
[313112026,1706759441308,-151.0,0.00023241,2]
[313112027,1706759441318,-151.0,0.00023241,2]
[313112028,1706759441328,-1526.88,0.00023241,2]
[313112029,1706759441338,-500.0,0.00023273,2]
[313112030,1706759441347,-500.0,0.00023273,2]
[313112031,1706759441357,-524.41,0.00023287,2]
[313112032,1706759441366,-500.0,0.00023287,2]
[313112033,1706759441376,-1723.89,0.00023287,2]
[313112034,1706759441385,-500.0,0.00023287,2]
[313112035,1706759441395,-1136.04,0.00023287,2]
[313112036,1706759441404,-748.69,0.00023287,2]
[313112037,1706759441414,-500.0,0.00023287,2]
[313112038,1706759441423,-1262.87,0.00023287,2]
[313112039,1706759441433,-500.0,0.00023287,2]
[313112040,1706759441442,-154.6767696,0.00023425,2]
[313112041,1706759441456,-153.0000001,0.00023425,2]
[313112042,1706759441465,-166.666666,0.00023456,2]
[313112043,1706759441476,-151.0,0.00023492,2]
[313112044,1706759441485,-1526.88,0.00023515,2]
[313112045,1706759441495,-1629.80560904,0.00023518,2]
[313112046,1706759441505,-642.49490967,0.00023531,2]
[313112047,1706759441514,-500.0,0.00023547,2]
[313112048,1706759441523,-524.41,0.00023561,2]
[313112049,1706759441533,-500.0,0.00023561,2]
[313112050,1706759441542,-1723.89,0.00023561,2]
[313112051,1706759441552,-500.0,0.00023561,2]
[313112052,1706759441562,-1136.04,0.00023561,2]
[313112053,1706759441571,-748.69,0.00023561,2]
[313112054,1706759441581,-500.0,0.00023561,2]
[313112055,1706759441590,-1262.87,0.00023561,2]
[313112056,1706759441599,-500.0,0.00023561,2]
[313112057,1706759441608,-1526.88,0.00023789,2]
[313112058,1706759441618,-300.0,0.000238,11]
[313112059,1706759441627,-500.0,0.00023821,2]
[313112060,1706759441636,-524.41,0.00023835,2]
[313112061,1706759441646,-500.0,0.00023835,2]
[313112062,1706759441655,-1723.89,0.00023835,2]
[313112063,1706759441664,-500.0,0.00023835,2]
[313112064,1706759441673,-1136.04,0.00023835,2]
[313112065,1706759441683,-748.69,0.00023835,2]
[313112066,1706759441693,-500.0,0.00023835,2]
[313112067,1706759441705,-1262.87,0.00023835,2]
[313112068,1706759441714,-500.0,0.00023835,2]
[313112069,1706759441723,-166.666666,0.00023969,2]
[313112070,1706759441732,-4414.70893004,0.00023999,2]
[313112071,1706759441742,-18868.0,0.00024,2]
[313112072,1706759441751,-1043.11063,0.00024,2]
[313112073,1706759441842,-1353.06713863,0.00024,2]
[313112074,1706759441852,-4021.82810121,0.00024,2]
[313112075,1706759441862,-151.0,0.00024,2]
[313112076,1706759441872,-151.0,0.00024,2]
[313112077,1706759441881,-200.23054,0.00024,2]
[313112078,1706759441890,-1580.710543,0.00024,2]
[313112079,1706759441900,-1580.710543,0.00024,2]
[313112080,1706759441909,-1526.88,0.00024063,2]
[313112081,1706759441918,-500.0,0.00024095,2]
[313112082,1706759441927,-524.41,0.00024109,2]
[313112083,1706759441936,-574.96158171,0.00024109,2]
[313112084,1706759441946,-1723.89,0.00024109,2]
[313112085,1706759441958,-500.0,0.00024109,2]
[313112086,1706759441967,-1136.04,0.00024109,2]
[313112087,1706759441977,-748.69,0.00024109,2]
[313112088,1706759441986,-500.0,0.00024109,2]
[313112089,1706759441996,-1262.87,0.00024109,2]
[313112090,1706759442005,-500.0,0.00024109,2]
[313112091,1706759442015,-1821.60364567,0.00024141,2]
[313112092,1706759442025,-156.03180818,0.00024141,2]
[313112093,1706759442034,-205.98932295,0.00024141,2]
[313112094,1706759442043,-230.72258642,0.00024141,2]
[313112095,1706759442053,-155.6433265,0.00024141,2]
[313112096,1706759442062,-156.47903559,0.00024141,2]
[313112097,1706759442071,-155.84248261,0.00024141,2]
[313112098,1706759442082,-330.81493432,0.00024141,2]
[313112099,1706759442092,-170.80139394,0.00024141,2]
[313112100,1706759442101,-174.4528693,0.00024141,2]
[313112101,1706759442111,-169.06516204,0.00024141,2]
[313112102,1706759442120,-156.29035891,0.00024141,2]
[313112103,1706759442130,-155.67700042,0.00024141,2]
[313112104,1706759442139,-156.64846019,0.00024141,2]
[313112105,1706759442148,-155.3981296,0.00024141,2]
[313112106,1706759442158,-155.50134467,0.00024141,2]
[313112107,1706759442167,-10000.0,0.00024143,2]
[313112108,1706759442177,-5000.0,0.000242,7]
[313112109,1706759442186,-151.0,0.00024306,2]
[313112110,1706759442195,-1526.88,0.00024337,2]
[313112111,1706759442208,-1580.710543,0.00024337,2]
[313112112,1706759442217,-1580.710543,0.00024337,2]
[313112113,1706759442226,-151.0,0.00024369,2]
[313112114,1706759442238,-151.0,0.00024369,2]
[313112115,1706759442249,-500.0,0.00024369,2]
[313112116,1706759442259,-524.41,0.00024383,2]
[313112117,1706759442268,-1723.89,0.00024383,2]
[313112118,1706759442279,-500.0,0.00024383,2]
[313112119,1706759442289,-1136.04,0.00024383,2]
[313112120,1706759442299,-748.69,0.00024383,2]
[313112121,1706759442309,-500.0,0.00024383,2]
[313112122,1706759442320,-1262.87,0.00024383,2]
[313112123,1706759442329,-500.0,0.00024383,2]
[313112124,1706759442350,-5000.0,0.000244,7]
[313112125,1706759442361,-166.666666,0.00024482,2]
[313112126,1706759442372,-600.0,0.000245,2]
[313112127,1706759442382,-5000.0,0.00024585,2]
[313112128,1706759442392,-5000.0,0.00024585,2]
[313112129,1706759442402,-5000.0,0.000246,7]
[313112130,1706759442413,-1526.88,0.00024611,2]
[313112131,1706759442422,-151.0,0.00024643,2]
[313112132,1706759442432,-500.0,0.00024643,2]
[313112133,1706759442443,-160.07238099,0.00024655,2]
[313112134,1706759442456,-151.0,0.00024657,2]
[313112135,1706759442465,-524.41,0.00024657,2]
[313112136,1706759442476,-1723.89,0.00024657,2]
[313112137,1706759442486,-457.12925752,0.00024657,2]
[313112138,1706759442496,-1136.04,0.00024657,2]
[313112139,1706759442506,-748.69,0.00024657,2]
[313112140,1706759442516,-217.57934236,0.00024657,2]
[313112141,1706759442527,-356.81453894,0.00024657,2]
[313112142,1706759442537,-1262.87,0.00024657,2]
[313112143,1706759442546,-316.41510336,0.00024657,2]
[313112144,1706759442556,-280.0,0.00024658,2]
[313112145,1706759442566,-621.12474548,0.00024707,2]
[313112146,1706759442575,-1580.710543,0.00024769,2]
[313112147,1706759442585,-1580.710543,0.00024769,2]
[313112148,1706759442594,-5000.0,0.000248,7]
[313112149,1706759442604,-445.52364689,0.000248,2]
[313112150,1706759442613,-1000.0,0.0002481,3]
[313112151,1706759442623,-1000.0,0.00024816,3]
[313112152,1706759442632,-1526.88,0.00024885,2]
[313112153,1706759442642,-4991.20146504,0.0002489,2]
[313112154,1706759442651,-290420.05624221,0.000249,2]
[313112155,1706759442660,-151.0,0.000249,2]
[313112156,1706759442670,-151.0,0.000249,2]
[313112158,1706759442679,-1580.710543,0.000249,2]
[313112159,1706759442688,-1580.710543,0.000249,2]
[313112160,1706759442698,-500.0,0.00024917,2]
[313112161,1706759442709,-524.41,0.00024931,2]
[313112162,1706759442719,-1723.89,0.00024931,2]
[313112163,1706759442728,-1136.04,0.00024931,2]
[313112165,1706759442738,-748.69,0.00024931,2]
[313112167,1706759442747,-1262.87,0.00024931,2]
[313112168,1706759442756,-1000.0,0.00024938,3]
[313112170,1706759442767,-499.3223787,0.0002496,5]
[313112172,1706759442776,-813.58871789,0.00025,2]
[313112173,1706759442837,-421.254,0.00019999,2]
[313112176,1706759443032,-78.746,0.00019999,2]
[313112177,1706759443041,-500.0,0.00020273,2]
[313112178,1706759443051,-3343.51440511,0.00025,2]
[313112179,1706759443061,-1026.05104585,0.00025,2]
[313112180,1706759443071,-2375.40658314,0.00025,2]
[313112181,1706759443081,-154.9690062,0.00025,2]
[313112182,1706759443091,-500.888147,0.00025,2]
[313112183,1706759443100,-1396.15707729,0.00025,13]
[313112191,1706759446039,-419.8,0.0002219,2]
[313112213,1706760272738,5000.0,0.000287,30]
[313112215,1706760299481,5000.0,0.000288,30]
[313112216,1706760313602,5000.0,0.000289,30]
[313112217,1706760326572,5000.0,0.000286,30]
[313112221,1706760413104,15000.0,0.0003,120]
[313112222,1706760457955,5000.0,0.0003,120]
[313112225,1706760530626,14999.315,0.0003,120]
[313112251,1706760633687,-2042.45805917,0.00019063,2]
[313112253,1706760633697,-155.01550155,0.00019063,3]
[313112255,1706760633709,-4435.1763834,0.00019064,2]
[313112256,1706760633719,-3423.760164,0.00019327,2]
[313112257,1706760633744,-1910.82752247,0.00019327,2]
[313112321,1706760639331,-28.57753953,0.00019327,2]
[313112323,1706760639341,-165.55540842,0.000199,2]
[313112325,1706760639351,-169.152085,0.00019943,2]
[313112327,1706760639360,-500.0,0.00019999,2]
[313112329,1706760639370,-498.96253921,0.00019999,2]
[313112331,1706760639379,-500.0,0.00019999,2]
[313112345,1706760639512,-500.0,0.00019999,2]
[313112347,1706760639522,-500.0,0.00019999,2]
[313112349,1706760639532,-500.0,0.00019999,2]
[313112351,1706760639542,-500.0,0.00019999,2]
[313112353,1706760639551,-500.0,0.00019999,2]
[313112355,1706760639561,-505.54337339,0.00019999,2]
[313112357,1706760639571,-500.0,0.00019999,2]
[313112359,1706760639581,-500.0,0.00019999,2]
[313112361,1706760639590,-1200.31274669,0.0002,2]
[313112363,1706760639600,-500.0,0.00020273,2]
[313112365,1706760639609,-500.0,0.00020273,2]
[313112367,1706760639619,-509.03407911,0.00020273,2]
[313112369,1706760639631,-500.0,0.00020273,2]
[313112371,1706760639640,-504.68941615,0.00020273,2]
[313112373,1706760639649,-500.0,0.00020273,2]
[313112375,1706760639661,-500.0,0.00020273,2]
[313112377,1706760639670,-536.87163581,0.00020273,2]
[313112379,1706760639679,-500.0,0.00020546,2]
[313112381,1706760639689,-500.0,0.00020546,2]
[313112383,1706760639698,-500.0,0.00020547,2]
[313112385,1706760639708,-500.0,0.00020547,2]
[313112387,1706760639718,-500.0,0.00020547,2]
[313112389,1706760639727,-500.0,0.0002082,2]
[313112391,1706760639736,-1149.26,0.0002082,2]
[313112393,1706760639745,-500.0,0.0002082,2]
[313112395,1706760639754,-550.66788078,0.00020821,2]
[313112397,1706760639764,-500.0,0.00020821,2]
[313112399,1706760639773,-500.0,0.00020821,2]
[313112401,1706760639782,-500.0,0.00020998,2]
[313112403,1706760639791,-500.0,0.00020999,2]
[313112405,1706760639800,-507.35740571,0.00020999,2]
[313112407,1706760639809,-302.26519309,0.00020999,2]
[313112409,1706760639818,-505.2109281,0.00020999,2]
[313112411,1706760639828,-500.0,0.00020999,2]
[313112413,1706760639836,-503.92603728,0.00020999,2]
[313112415,1706760639845,-500.0,0.00020999,2]
[313112417,1706760639855,-500.0,0.00020999,2]
[313112419,1706760639864,-778.2,0.00020999,2]
[313112421,1706760639873,-500.0,0.00020999,2]
[313112423,1706760639883,-500.0,0.00020999,2]
[313112425,1706760639891,-500.0,0.00020999,2]
[313112427,1706760639901,-516.26866858,0.00020999,2]
[313112429,1706760639909,-500.0,0.00020999,2]
[313112431,1706760639918,-508.68146929,0.00020999,2]
[313112433,1706760639928,-512.55032361,0.00020999,2]
[313112435,1706760639936,-447.40634005,0.00020999,2]
[313112437,1706760639945,-500.0,0.00020999,2]
[313112439,1706760639954,-500.0,0.00020999,2]
[313112441,1706760639963,-505.97331896,0.00020999,2]
[313112443,1706760639972,-841.91,0.00020999,2]
[313112445,1706760639981,-500.0,0.00020999,2]
[313112447,1706760639990,-1365.45,0.00020999,2]
[313112449,1706760639999,-17216.0962955,0.00021,2]
[313112450,1706760640008,-500.0,0.00021094,2]
[313112452,1706760640017,-1149.26,0.00021094,2]
[313112454,1706760640026,-500.0,0.00021094,2]
[313112456,1706760640035,-500.0,0.00021095,2]
[313112458,1706760640045,-500.0,0.00021095,2]
[313112460,1706760640054,-1883.99,0.00021109,3]
[313112463,1706760640063,-3592.65,0.00021109,3]
[313112464,1706760640072,-11844.26481809,0.00021119,2]
[313112466,1706760640081,-16544.56257861,0.00021119,2]
[313112468,1706760640091,-3973.18580779,0.00021119,2]
[313112470,1706760640100,-500.0,0.00021272,2]
[313112472,1706760640111,-500.0,0.00021273,2]
[313112475,1706760640120,-500.0,0.00021273,2]
[313112477,1706760640130,-778.2,0.00021273,2]
[313112479,1706760640140,-500.0,0.00021273,2]
[313112481,1706760640149,-500.0,0.00021273,2]
[313112483,1706760640160,-500.0,0.00021273,2]
[313112485,1706760640168,-500.0,0.00021273,2]
[313112487,1706760640177,-500.0,0.00021273,2]
[313112489,1706760640186,-500.0,0.00021273,2]
[313112491,1706760640198,-841.91,0.00021273,2]
[313112493,1706760640207,-1365.45,0.00021273,2]
[313112495,1706760640216,-500.0,0.00021368,2]
[313112497,1706760640226,-1149.26,0.00021368,2]
[313112499,1706760640235,-500.0,0.00021368,2]
[313112501,1706760640244,-500.0,0.00021369,2]
[313112503,1706760640253,-500.0,0.00021369,2]
[313112505,1706760640262,-500.0,0.00021546,2]
[313112507,1706760640271,-500.0097031,0.00021547,2]
[313112509,1706760640280,-500.0,0.00021547,2]
[313112511,1706760640289,-778.2,0.00021547,2]
[313112512,1706760640298,-500.0,0.00021547,2]
[313112514,1706760640307,-500.0,0.00021547,2]
[313112516,1706760640316,-492.52543003,0.00021547,2]
[313112518,1706760640325,-841.91,0.00021547,2]
[313112521,1706760640335,-1365.45,0.00021547,2]
[313112523,1706760640344,-500.0,0.00021642,2]
[313112525,1706760640354,-1149.26,0.00021642,2]
[313112527,1706760640364,-500.0,0.00021642,2]
[313112528,1706760640373,-500.0,0.00021643,2]
[313112530,1706760640382,-316.41510336,0.00021643,2]
[313112532,1706760640391,-1629.80560904,0.00021743,2]
[313112534,1706760640402,-3000.0,0.000218,2]
[313112536,1706760640412,-500.0,0.0002182,2]
[313112538,1706760640421,-500.0,0.00021821,2]
[313112540,1706760640430,-778.2,0.00021821,2]
[313112542,1706760640439,-500.0,0.00021821,2]
[313112544,1706760640448,-500.0,0.00021821,2]
[313112546,1706760640457,-841.91,0.00021821,2]
[313112549,1706760640469,-1365.45,0.00021821,2]
[313112551,1706760640478,-500.0,0.00021916,2]
[313112552,1706760640487,-1149.26,0.00021916,2]
[313112554,1706760640497,-500.0,0.00021916,2]
[313112557,1706760640506,-500.0,0.00021917,2]
[313112558,1706760640516,-166.666666,0.00021918,2]
[313112560,1706760640525,-2037.9288444,0.00022,2]
[313112562,1706760640534,-426.74292046,0.00022,2]
[313112564,1706760640544,-327.87136116,0.00022,2]
[313112566,1706760640554,-3975.94482734,0.00022,2]
[313112568,1706760640563,-13751.87659792,0.0002209,2]
[313112570,1706760640572,-500.0,0.00022094,2]
[313112573,1706760640582,-500.0,0.00022095,2]
[313112575,1706760640591,-778.2,0.00022095,2]
[313112577,1706760640600,-500.0,0.00022095,2]
[313112579,1706760640610,-500.0,0.00022095,2]
[313112581,1706760640620,-841.91,0.00022095,2]
[313112583,1706760640635,-1365.45,0.00022095,2]
[313112585,1706760640646,-303.01478586,0.00022188,2]
[313112587,1706760640658,-170.80139394,0.00022188,2]
[313112590,1706760640670,-230.72258642,0.00022188,2]
[313112592,1706760640683,-155.50134467,0.00022188,2]
[313112594,1706760640694,-155.84248261,0.00022188,2]
[313112596,1706760640705,-205.98932295,0.00022188,2]
[313112598,1706760640715,-156.29035891,0.00022188,2]
[313112601,1706760640726,-330.81493432,0.00022188,2]
[313112603,1706760640737,-155.3981296,0.00022188,2]
[313112605,1706760640748,-169.06516204,0.00022188,2]
[313112607,1706760640759,-155.6433265,0.00022188,2]
[313112609,1706760640770,-156.03180818,0.00022188,2]
[313112612,1706760640781,-1821.60364567,0.00022188,2]
[313112614,1706760640793,-174.4528693,0.00022188,2]
[313112616,1706760640804,-156.47903559,0.00022188,2]
[313112618,1706760640815,-156.64846019,0.00022188,2]
[313112621,1706760640826,-155.67700042,0.00022188,2]
[313112623,1706760640836,-4414.70893004,0.00022188,2]
[313112625,1706760640846,-1326.83499446,0.00022189,2]
[313112627,1706760640858,-649.64714204,0.00022189,2]
[313112629,1706760640870,-155.43134264,0.00022189,2]
[313112631,1706760640880,-500.0,0.0002219,2]
[313112632,1706760640890,-1149.26,0.0002219,2]
[313112633,1706760640900,-500.0,0.0002219,2]
[313112634,1706760640911,-500.0,0.00022191,2]
[313112635,1706760640922,-500.0,0.00022368,2]
[313112636,1706760640932,-500.0,0.00022369,2]
[313112637,1706760640942,-778.2,0.00022369,2]
[313112638,1706760640953,-500.0,0.00022369,2]
[313112639,1706760640964,-500.0,0.00022369,2]
[313112640,1706760640975,-841.91,0.00022369,2]
[313112641,1706760640986,-1365.45,0.00022369,2]
[313112642,1706760640996,-166.666666,0.00022431,2]
[313112643,1706760641007,-500.0,0.00022464,2]
[313112644,1706760641017,-1149.26,0.00022464,2]
[313112645,1706760641028,-500.0,0.00022464,2]
[313112646,1706760641039,-500.0,0.00022465,2]
[313112647,1706760641050,-500.0,0.00022642,2]
[313112648,1706760641060,-500.0,0.00022643,2]
[313112649,1706760641069,-778.2,0.00022643,2]
[313112650,1706760641079,-500.0,0.00022643,2]
[313112651,1706760641089,-500.0,0.00022643,2]
[313112652,1706760641101,-841.91,0.00022643,2]
[313112653,1706760641112,-1365.45,0.00022643,2]
[313112654,1706760641123,-500.0,0.00022738,2]
[313112655,1706760641133,-1149.26,0.00022738,2]
[313112656,1706760641144,-500.0,0.00022738,2]
[313112658,1706760641156,-3327.46764336,0.000228,2]
[313112659,1706760641166,-500.0,0.00022916,2]
[313112660,1706760641176,-500.0,0.00022917,2]
[313112662,1706760641187,-778.2,0.00022917,2]
[313112663,1706760641197,-574.96158171,0.00022917,2]
[313112664,1706760641208,-500.0,0.00022917,2]
[313112665,1706760641219,-841.91,0.00022917,2]
[313112666,1706760641230,-1365.45,0.00022917,2]
[313112667,1706760641240,-166.666666,0.00022944,2]
[313112668,1706760641251,-9956.8960438,0.00023,2]
[313112669,1706760641261,-1261.69149652,0.00023,2]
[313112670,1706760641272,-500.0,0.00023012,2]
[313112671,1706760641283,-1149.26,0.00023012,2]
[313112672,1706760641295,-500.0,0.00023012,2]
[313112673,1706760641305,-500.0,0.0002319,2]
[313112674,1706760641316,-500.0,0.00023191,2]
[313112675,1706760641327,-778.2,0.00023191,2]
[313112676,1706760641339,-500.0,0.00023191,2]
[313112677,1706760641350,-841.91,0.00023191,2]
[313112678,1706760641362,-1365.45,0.00023191,2]
[313112679,1706760641372,-500.0,0.00023286,2]
[313112680,1706760641382,-1149.26,0.00023286,2]
[313112681,1706760641392,-217.57934236,0.00023286,2]
[313112682,1706760641401,-166.666666,0.00023456,2]
[313112683,1706760641412,-500.0,0.00023464,2]
[313112684,1706760641421,-500.0,0.00023465,2]
[313112685,1706760641431,-778.2,0.00023465,2]
[313112686,1706760641442,-500.0,0.00023465,2]
[313112687,1706760641453,-841.91,0.00023465,2]
[313112688,1706760641463,-1365.45,0.00023465,2]
[313112689,1706760641474,-500.0,0.0002356,2]
[313112690,1706760641485,-1149.26,0.0002356,2]
[313112691,1706760641495,-500.0,0.00023738,2]
[313112692,1706760641505,-457.12925752,0.00023739,2]
[313112693,1706760641516,-778.2,0.00023739,2]
[313112694,1706760641529,-500.0,0.00023739,2]
[313112695,1706760641541,-841.91,0.00023739,2]
[313112696,1706760641550,-1365.45,0.00023739,2]
[313112697,1706760641560,-300.0,0.000238,11]
[313112698,1706760641570,-500.0,0.00023834,2]
[313112699,1706760641580,-1149.26,0.00023834,2]
[313112700,1706760641590,-166.666666,0.00023969,2]
[313112701,1706760641600,-4021.82810121,0.00024,2]
[313112702,1706760641610,-500.0,0.00024012,2]
[313112703,1706760641620,-778.2,0.00024013,2]
[313112704,1706760641632,-382.17927722,0.00024013,2]
[313112705,1706760641643,-841.91,0.00024013,2]
[313112706,1706760641653,-1365.45,0.00024013,2]
[313112707,1706760641665,-500.0,0.00024108,2]
[313112708,1706760641674,-1149.26,0.00024108,2]
[313112709,1706760641685,-500.0,0.00024286,2]
[313112710,1706760641695,-778.2,0.00024287,2]
[313112711,1706760641707,-841.91,0.00024287,2]
[313112712,1706760641719,-1365.45,0.00024287,2]
[313112713,1706760641729,-160.09709862,0.000243,2]
[313112714,1706760641739,-500.0,0.00024382,2]
[313112715,1706760641750,-1149.26,0.00024382,2]
[313112716,1706760641761,-399.0557995,0.00024384,2]
[313112717,1706760641771,-153.0,0.00024384,2]
[313112718,1706760641782,-153.0,0.00024384,2]
[313112719,1706760641792,-153.0,0.00024384,2]
[313112720,1706760641802,-153.0,0.00024384,2]